bitfinex/quotes_ETHUSD_20250526
["timestamp","ask_amount","ask_price","bid_price","bid_amount"]
[1748259544651,1.56143083,2561.8,2561.6,8.0]
[1748259545961,1.60958527,2561.9,2561.6,8.0]
[1748259546366,1.5614393,2561.8,2561.6,8.0]
[1748259546587,1.5614393,2561.8,2561.6,9.52525946]
[1748259550190,1.56146309,2561.7,2561.6,9.52525946]
[1748259550396,1.56146309,2561.7,2561.6,8.0]
[1748259552292,1.56164597,2561.4,2561.3,0.61930423]
[1748259552873,1.56170799,2561.3,2561.0,12.51930423]
[1748259553080,0.792,2561.7,2561.0,12.51930423]
[1748259553463,1.56175075,2561.3,2561.0,12.51930423]
[1748259553664,1.56175075,2561.3,2561.1,1.66703989]
[1748259554093,1.56175075,2561.3,2561.1,5.01963452]
[1748259554318,1.56152404,2561.6,2561.1,5.01963452]
[1748259554469,1.56188988,2561.0,2560.9,0.61930423]
[1748259555499,1.56195087,2560.9,2560.8,3.35259463]
[1748259556104,1.56192554,2561.0,2560.8,3.35259463]
[1748259556280,0.36486497,2561.4,2560.9,4.12789463]
[1748259556483,0.36486497,2561.4,2561.3,3.35259463]
[1748259556888,1.92651094,2561.4,2561.3,3.35259463]
[1748259557228,0.36486497,2561.4,2561.3,3.35259463]
[1748259557374,1.56155948,2561.6,2561.3,4.14589463]
[1748259557572,1.56159774,2561.5,2561.3,4.14589463]
[1748259558074,6.31003352,2561.8,2561.3,4.56048409]
[1748259558435,1.56164597,2561.4,2561.1,12.16549463]
[1748259558588,1.56157306,2561.6,2561.1,12.16549463]
[1748259558589,1.56161198,2561.5,2561.1,12.16549463]
[1748259558969,1.56161198,2561.5,2561.3,3.35259463]
[1748259559268,1.56157905,2561.6,2561.3,3.35259463]
[1748259559474,6.31003352,2561.8,2561.1,12.16549463]
[1748259559475,1.56164597,2561.4,2561.1,12.16549463]
[1748259559727,1.56164597,2561.4,2561.2,1.68687794]
[1748259559904,1.56160053,2561.5,2561.2,1.68687794]
[1748259561907,1.56170694,2561.3,2561.2,1.68687794]
[1748259562106,1.56173871,2561.3,2561.1,15.25259463]
[1748259562273,1.56176792,2561.2,2561.1,15.25259463]
[1748259562771,1.56176792,2561.2,2561.1,11.35259463]
[1748259562975,1.56173646,2561.3,2561.1,15.25259463]
[1748259563176,1.56173646,2561.3,2561.1,16.93510257]
[1748259564914,1.5618289,2561.1,2561.0,0.80328481]
[1748259565084,1.56176792,2561.2,2561.0,12.70328481]
[1748259565595,1.5618289,2561.1,2561.0,12.70328481]
[1748259565788,1.5618289,2561.1,2561.0,8.80328481]
[1748259565993,1.5618289,2561.1,2561.0,11.9]
[1748259566197,0.7858,2561.7,2561.0,11.9]
[1748259566398,1.56175266,2561.3,2561.0,11.9]
[1748259566603,1.56175266,2561.3,2561.1,3.35259463]
[1748259568419,1.56167496,2561.4,2561.1,3.35259463]
[1748259568731,1.56167496,2561.4,2561.1,5.3452538]
[1748259569024,1.56171387,2561.3,2561.1,5.3452538]
[1748259570628,1.56167158,2561.4,2561.1,5.3452538]
[1748259575511,1.56171039,2561.3,2561.1,5.3452538]
[1748259577335,1.56168684,2561.4,2561.2,0.8157]
[1748259578531,1.56170694,2561.3,2561.2,0.8157]
[1748259578712,1.56170694,2561.3,2561.2,2.62179538]
[1748259579035,1.56170694,2561.3,2561.2,6.52179538]
[1748259579432,1.56176792,2561.2,2561.1,3.35259463]
[1748259579633,1.56176792,2561.2,2561.1,3.9]
[1748259582332,1.5618289,2561.1,2561.0,8.0]
[1748259582535,1.5618289,2561.1,2561.0,11.9]
[1748259582745,1.5618289,2561.1,2561.0,13.31651565]
[1748259583637,1.56179901,2561.2,2561.0,13.31651565]
[1748259584042,1.5618289,2561.1,2561.0,1.41651565]
[1748259584234,1.5618289,2561.1,2561.0,11.9]
[1748259585834,1.56180147,2561.2,2561.0,11.9]
[1748259586540,1.56173432,2561.3,2561.0,15.25259463]
[1748259586741,1.56167209,2561.4,2561.0,15.25259463]
[1748259586941,1.56165618,2561.4,2561.0,19.15730775]
[1748259587145,1.56165618,2561.4,2561.2,3.35259463]
[1748259587717,1.56170694,2561.3,2561.2,3.35259463]
[1748259587919,1.56168725,2561.4,2561.2,3.35259463]
[1748259588142,6.31003352,2561.8,2561.2,3.35259463]
[1748259588345,1.56151603,2561.7,2561.5,3.35259463]
[1748259588755,1.56143219,2561.8,2561.5,3.35259463]
[1748259588932,1.56143219,2561.8,2561.5,4.16259463]
[1748259589312,1.5614649,2561.7,2561.5,4.16259463]
[1748259589522,1.56142549,2561.8,2561.5,4.16259463]
[1748259590241,1.56142549,2561.8,2561.5,5.04971815]
[1748259591849,1.56151794,2561.7,2561.5,5.04971815]
[1748259592447,1.5614274,2561.8,2561.5,5.04971815]
[1748259593749,1.5614274,2561.8,2561.5,8.94971815]
[1748259595148,1.60959909,2561.9,2561.6,8.0]
[1748259595339,1.60959909,2561.9,2561.7,1.69497182]
[1748259595851,0.7924,2561.8,2561.5,8.0]
[1748259596463,1.56151675,2561.7,2561.5,8.0]
[1748259596814,1.56152404,2561.6,2561.5,8.0]
[1748259600438,0.7924,2561.8,2561.2,3.35259463]
[1748259600747,1.56163235,2561.5,2561.4,8.0]
[1748259602074,1.56146309,2561.7,2561.4,8.0]
[1748259602215,1.56146309,2561.7,2561.4,13.26829144]
[1748259603152,1.56152404,2561.6,2561.4,13.26829144]
[1748259603360,1.561585,2561.5,2561.4,13.26829144]
[1748259604374,1.561585,2561.5,2561.4,9.91569681]
[1748259604969,1.5616508,2561.4,2561.3,3.9]
[1748259605177,1.5616508,2561.4,2561.2,8.0]
[1748259605355,1.56170694,2561.3,2561.2,3.9]
[1748259605669,1.56170694,2561.3,2561.2,11.9]
[1748259606180,1.561677,2561.4,2561.2,11.9]
[1748259606673,1.56164658,2561.4,2561.2,11.9]
[1748259606836,1.56164658,2561.4,2561.2,13.60572632]
[1748259610970,1.56170694,2561.3,2561.2,11.9]
[1748259611173,1.56164658,2561.4,2561.2,11.9]
[1748259611174,1.56168395,2561.4,2561.2,11.9]
[1748259612773,1.5616028,2561.5,2561.2,11.9]
[1748259613078,1.5616028,2561.5,2561.3,3.35259463]
[1748259613890,1.56164597,2561.4,2561.3,3.35259463]
[1748259619047,1.56152094,2561.7,2561.3,4.95630409]
[1748259619248,1.56153284,2561.6,2561.5,3.35259463]
[1748259619447,1.56148873,2561.7,2561.5,3.35259463]
[1748259619863,1.56148873,2561.7,2561.6,0.8207]
[1748259620512,1.56143186,2561.8,2561.6,0.8207]
[1748259621667,1.56143186,2561.8,2561.5,3.35259463]
[1748259622313,1.56143186,2561.8,2561.5,4.32071755]
[1748259624814,1.56148989,2561.7,2561.5,4.32071755]
[1748259626327,1.56170694,2561.3,2561.2,0.61930423]
[1748259626471,2.35240323,2561.8,2561.2,0.61930423]
[1748259626666,1.56163514,2561.5,2561.2,3.97189886]
[1748259626910,1.56170419,2561.4,2561.2,3.97189886]
[1748259627116,1.56161768,2561.5,2561.2,5.63484875]
[1748259627809,1.56161768,2561.5,2561.2,5.01554452]
[1748259630613,1.56164637,2561.4,2561.2,5.01554452]
[1748259634712,1.56149045,2561.7,2561.2,5.01554452]
[1748259634911,0.04821869,2561.9,2561.6,3.35259463]
[1748259635092,1.60959984,2561.9,2561.6,3.35259463]
[1748259635501,1.60959984,2561.9,2561.6,5.34776739]
[1748259636292,1.5614071,2561.8,2561.6,8.0]
[1748259636497,1.56146309,2561.7,2561.6,8.0]
[1748259636696,1.56143704,2561.8,2561.6,8.0]
[1748259637803,0.04821869,2561.9,2561.6,8.0]
[1748259638010,0.04821869,2561.9,2561.8,8.0]
[1748259638202,0.04821869,2561.9,2561.8,9.52563199]
[1748259638408,0.04821869,2561.9,2561.8,13.42563199]
[1748259638594,0.04821869,2561.9,2561.8,17.32913733]
[1748259638924,0.13079556,2562.2,2562.1,12.71144828]
[1748259639084,0.50786133,2562.3,2562.2,11.90289594]
[1748259639289,0.56468635,2562.9,2562.8,8.8071]
[1748259639619,0.56468635,2562.9,2562.8,22.01442609]
[1748259639799,0.1,2562.9,2562.8,22.01442609]
[1748259640579,0.1,2562.9,2562.8,28.62892072]
[1748259640833,0.1,2562.9,2562.8,26.09262609]
[1748259642540,1.56000536,2564.1,2562.8,26.09262609]
[1748259642541,2.60511503,2564.3,2563.8,0.7819]
[1748259642834,1.56020435,2563.8,2563.5,4.13449463]
[1748259643004,1.56016733,2563.9,2563.6,11.899]
[1748259643205,1.5601841,2563.8,2563.6,12.09603662]
[1748259643432,1.5601348,2563.9,2563.6,12.09603662]
[1748259643607,1.56002048,2564.1,2563.6,12.09603662]
[1748259643818,1.56015969,2563.9,2563.6,12.09603662]
[1748259644203,0.24246312,2564.1,2563.6,0.19703662]
[1748259644420,1.56036675,2563.5,2563.2,3.899]
[1748259644604,1.5601841,2563.8,2563.0,3.35259463]
[1748259644804,1.56052711,2563.3,2563.1,3.898]
[1748259645006,2.33320943,2563.5,2563.1,3.898]
[1748259645007,1.56057129,2563.2,2563.1,3.898]
[1748259645229,3.35259463,2564.0,2563.1,3.898]
[1748259645230,1.17872691,2563.9,2563.5,8.0]
[1748259645429,1.17872691,2563.9,2563.8,11.35259463]
[1748259646110,1.17872691,2563.9,2563.8,8.0]
[1748259647405,0.7728,2564.1,2563.8,3.35259463]
[1748259647609,1.56001434,2564.1,2563.9,8.0]
[1748259647810,1.56001434,2564.1,2564.0,11.35259463]
[1748259648406,1.56001434,2564.1,2564.0,8.0]
[1748259648610,1.95847153,2564.1,2564.0,8.0]
[1748259655135,1.95847153,2564.1,2563.0,1.44743482]
[1748259655136,1.56058634,2563.2,2563.0,1.44743482]
[1748259655335,1.56048816,2563.4,2563.2,8.0]
[1748259655535,1.56048816,2563.4,2563.0,1.00941544]
[1748259655536,1.56048816,2563.4,2563.3,11.35259463]
[1748259655762,1.56048816,2563.4,2563.3,3.35259463]
[1748259659277,1.39798816,2563.4,2563.3,3.35259463]
[1748259659639,0.8144,2563.9,2563.3,3.35259463]
[1748259659868,2.37452324,2563.9,2563.8,11.35259463]
[1748259660079,3.18068236,2563.9,2563.8,11.35259463]
[1748259660286,1.56009718,2564.0,2563.9,8.0]
[1748259660445,1.56012324,2563.9,2563.8,3.35259463]
[1748259661375,1.17009243,2563.9,2563.8,3.35259463]
[1748259662147,1.17009243,2563.9,2563.8,11.35259463]
[1748259662348,1.17009243,2563.9,2563.8,15.24959463]
[1748259664578,1.17007229,2564.0,2563.9,8.0]
[1748259664769,1.17007229,2564.0,2563.9,11.35259463]
[1748259664967,0.9157,2564.9,2564.0,3.90006516]
[1748259665184,0.9157,2564.9,2563.9,17.04484872]
[1748259665185,2.0853453,2564.9,2564.8,8.0]
[1748259665493,1.16977306,2564.6,2564.5,11.35259463]
[1748259666686,1.16977306,2564.6,2564.5,11.73286187]
[1748259666891,1.40372402,2564.6,2564.5,11.73286187]
[1748259667418,2.0853453,2564.9,2564.5,11.73286187]
[1748259667419,0.9157,2564.9,2564.5,3.73286187]
[1748259667690,2.08534543,2564.9,2564.8,8.0]
[1748259668092,0.1,2564.9,2564.8,8.0]
[1748259669006,1.26963624,2564.9,2564.8,8.0]
[1748259669298,0.1,2564.9,2564.8,8.0]
[1748259669462,0.0932973,2564.9,2564.8,8.0]
[1748259669795,1.1697612,2564.7,2564.5,0.38065694]
[1748259669961,1.16972745,2564.7,2564.6,11.35259463]
[1748259673799,0.0932973,2564.9,2564.6,14.70518926]
[1748259674001,0.0932973,2564.9,2564.8,14.70518926]
[1748259674299,0.0932973,2564.9,2564.8,16.06072535]
[1748259674460,0.0932973,2564.9,2564.8,15.53248926]
[1748259674658,0.0932973,2564.9,2564.8,12.17989463]
[1748259674863,0.0932973,2564.9,2564.8,16.07589463]
[1748259675165,0.0932973,2564.9,2564.8,17.87331432]
[1748259675679,1.26293354,2564.9,2564.8,15.24859463]
[1748259676925,2.06083354,2564.9,2564.8,11.35259463]
[1748259678313,1.26293354,2564.9,2564.8,11.35259463]
[1748259683899,2.07553354,2564.9,2564.8,11.35259463]
[1748259684106,2.40004689,2564.9,2564.8,11.35259463]
[1748259684677,2.40004689,2564.9,2564.8,8.0]
[1748259692612,2.76418813,2564.9,2564.8,8.0]
[1748259710479,1.62707478,2564.9,2564.8,8.0]
[1748259710666,0.45743854,2564.9,2564.8,8.52823609]
[1748259710985,1.62707478,2564.9,2564.8,9.28703609]
[1748259711355,1.62707478,2564.9,2564.8,8.7588]
[1748259711656,1.62707478,2564.9,2564.8,8.0]
[1748259712067,1.26293354,2564.9,2564.8,8.0]
[1748259716805,0.0932973,2564.9,2564.8,9.8466597]
[1748259716981,0.0932973,2564.9,2564.8,10.6066597]
[1748259718277,0.0932973,2564.9,2564.8,10.07842361]
[1748259718912,1.26293354,2564.9,2564.8,10.07842361]
[1748259719276,0.0932973,2564.9,2564.8,10.07842361]
[1748259720191,0.0932973,2564.9,2564.8,13.97342361]
[1748259720392,0.0932973,2564.9,2564.8,14.5016597]
[1748259724134,0.0932973,2564.9,2564.8,18.40059918]
[1748259725133,0.0932973,2564.9,2564.8,13.97342361]
[1748259726742,0.0932973,2564.9,2564.8,10.07842361]
[1748259726947,0.0932973,2564.9,2564.8,13.97342361]
[1748259729746,0.0932973,2564.9,2564.8,10.07842361]
[1748259729957,0.0932973,2564.9,2564.8,13.97342361]
[1748259730957,0.0932973,2564.9,2564.8,10.07842361]
[1748259731159,0.0932973,2564.9,2564.8,13.97342361]
[1748259733066,1.16972745,2564.7,2564.6,0.46159037]
[1748259734064,1.16977306,2564.6,2564.5,0.38183368]
[1748259734248,1.16985867,2564.5,2564.1,0.7518]
[1748259734448,1.16989735,2564.4,2564.1,0.7518]
[1748259734752,1.16981867,2564.5,2564.1,0.7518]
[1748259734950,1.16991532,2564.3,2564.1,2.06316321]
[1748259735391,1.16988839,2564.4,2564.1,2.06316321]
[1748259735695,1.16983489,2564.5,2564.1,2.06316321]
[1748259735882,1.1699009,2564.4,2564.1,2.46135141]
[1748259736197,1.16991337,2564.3,2564.1,2.46135141]
[1748259739523,1.16988829,2564.4,2564.1,2.46135141]
[1748259740997,1.16972551,2564.8,2564.1,2.46135141]
[1748259741203,1.16989159,2564.4,2564.1,2.46135141]
[1748259743168,1.16981917,2564.5,2564.1,2.46135141]
[1748259743169,1.16984236,2564.5,2564.1,2.46135141]
[1748259743369,5.33677676,2564.9,2564.1,2.46135141]
[1748259743706,1.16982486,2564.5,2564.2,8.0]
[1748259745323,1.16977999,2564.6,2564.2,3.89983211]
[1748259745491,1.16971534,2564.8,2564.5,0.8203]
[1748259746216,1.16974012,2564.7,2564.5,0.8203]
[1748259746585,1.16970661,2564.8,2564.5,0.8203]
[1748259747293,1.16952015,2565.2,2564.3,0.46159037]
[1748259747294,1.16986429,2564.4,2564.3,0.46159037]
[1748259747631,1.16986429,2564.4,2564.3,8.46159037]
[1748259748419,1.16986429,2564.4,2564.3,8.0]
[1748259750436,1.16995554,2564.2,2564.1,0.3981882]
[1748259750739,1.17000839,2564.1,2563.9,8.0]
[1748259750926,1.17000839,2564.1,2564.0,2.06678]
[1748259752333,1.17000839,2564.1,2563.8,4.6678]
[1748259753239,1.16997652,2564.2,2563.9,8.0]
[1748259754739,1.16995562,2564.2,2563.9,8.0]
[1748259756842,1.16995562,2564.2,2563.8,1.15288654]
[1748259757046,1.17004882,2564.0,2563.8,5.04888654]
[1748259757414,1.1700468,2564.0,2563.9,8.0]
[1748259757613,1.17008481,2564.0,2563.8,0.38008654]
[1748259757848,1.17008481,2564.0,2563.7,8.46159037]
[1748259757849,1.17008481,2564.0,2563.7,0.46159037]
[1748259758149,1.17008481,2564.0,2563.7,2.22488314]
[1748259759347,8.481e-05,2564.0,2563.7,6.12545357]
[1748259759562,1.16988256,2564.4,2564.0,0.7983]
[1748259759862,1.16986306,2564.5,2564.1,3.89998732]
[1748259760031,1.16986665,2564.4,2564.1,8.85985541]
[1748259760448,1.16984181,2564.5,2564.1,8.85985541]
[1748259760765,1.16984181,2564.5,2564.1,12.75985498]
[1748259761292,1.16979418,2564.6,2564.1,12.75985498]
[1748259761795,1.16979418,2564.6,2564.1,13.22144535]
[1748259761987,1.16979418,2564.6,2564.2,2.18158985]
[1748259763272,1.16979418,2564.6,2564.3,8.46159037]
[1748259763645,1.16976605,2564.7,2564.4,0.7533]
[1748259763853,1.16977342,2564.6,2564.4,0.7533]
[1748259766582,1.16981867,2564.5,2564.4,0.7533]
[1748259767281,1.1697989,2564.6,2564.4,0.7533]
[1748259769884,1.1697989,2564.6,2564.3,8.46159037]
[1748259770081,1.16981894,2564.5,2564.3,8.46159037]
[1748259770247,1.16986429,2564.4,2564.3,8.46159037]
[1748259770659,1.16984008,2564.5,2564.3,8.92165906]
[1748259770860,1.16979429,2564.6,2564.3,8.92165906]
[1748259772953,0.8086,2564.9,2564.3,8.92165906]
[1748259773246,1.97824486,2564.9,2564.3,12.82128533]
[1748259773471,1.16972918,2564.7,2564.3,12.82128533]
[1748259773646,1.16972918,2564.7,2564.4,1.97325171]
[1748259773845,1.97824486,2564.9,2564.4,1.97325171]
[1748259774065,0.88521679,2564.8,2564.5,8.0]
[1748259774270,0.88521679,2564.8,2564.4,9.97325171]
[1748259774986,1.16973434,2564.7,2564.4,10.43484208]
[1748259775849,1.16973434,2564.7,2564.4,9.97325171]
[1748259777992,1.16977348,2564.6,2564.4,9.97325171]
[1748259778283,1.16966365,2564.8,2564.4,9.97325171]
[1748259778471,1.16974774,2564.7,2564.4,9.97325171]
[1748259779980,1.16977817,2564.6,2564.4,9.97325171]
[1748259780557,1.07236052,2564.6,2564.4,9.97325171]
[1748259784393,4.095,2565.3,2564.7,8.0]
[1748259784579,1.16961406,2565.0,2564.7,8.0]
[1748259785284,1.16945451,2565.3,2564.7,8.0]
[1748259785483,1.16968184,2564.8,2564.7,8.0]
[1748259785801,1.16967371,2564.9,2564.7,8.0]
[1748259785802,1.16966345,2564.9,2564.7,8.0]
[1748259785961,1.16936269,2565.5,2564.7,8.0]
[1748259786159,1.16965493,2564.9,2564.7,8.0]
[1748259787591,1.16968184,2564.8,2564.7,8.0]
[1748259788394,1.16965906,2564.9,2564.7,8.0]
[1748259788979,1.16960317,2565.0,2564.7,8.0]
[1748259789192,1.16965723,2564.9,2564.7,8.0]
[1748259789393,1.16965723,2564.9,2564.7,9.81516553]
[1748259789794,1.16961665,2565.0,2564.7,9.81516553]
[1748259790118,4.095,2565.6,2564.8,0.8041]
[1748259790327,4.05417635,2565.6,2565.2,8.0]
[1748259790486,1.1693712,2565.5,2565.1,8.8041]
[1748259790901,1.16936269,2565.5,2565.0,8.0]
[1748259791201,2.88483826,2565.6,2565.0,8.0]
[1748259791392,1.16936269,2565.5,2565.1,0.46159037]
[1748259791580,1.16949945,2565.2,2565.1,0.46159037]
[1748259792181,1.16949945,2565.2,2565.1,0.8443556]
[1748259792377,1.16945244,2565.4,2565.1,2.14295685]
[1748259792602,1.16949945,2565.2,2565.1,1.68136648]
[1748259792776,1.16945244,2565.4,2565.1,0.38276523]
[1748259792976,1.16945244,2565.4,2565.0,8.46159037]
[1748259793181,1.16947856,2565.3,2565.0,8.46159037]
[1748259794110,1.16942786,2565.4,2565.0,8.46159037]
[1748259794272,1.16937744,2565.5,2565.0,12.36014275]
[1748259794474,1.16938398,2565.5,2565.0,14.51548925]
[1748259794976,1.1693893,2565.5,2565.0,14.51548925]
[1748259795187,1.1694767,2565.3,2565.0,10.61693687]
[1748259796079,1.16950248,2565.2,2565.0,11.0080873]
[1748259796275,1.16949945,2565.2,2565.0,8.8527408]
[1748259796485,1.16954504,2565.1,2565.0,0.8527408]
[1748259798142,1.16954504,2565.1,2565.0,0.39115043]
[1748259798411,1.16954504,2565.1,2564.8,8.0]
[1748259799115,1.16957436,2565.1,2564.8,8.0]
[1748259799677,1.16952246,2565.2,2564.8,8.0]
[1748259800014,1.16954548,2565.1,2564.8,8.39685815]
[1748259803312,1.16940839,2565.4,2565.0,8.0]
[1748259803519,1.16945819,2565.3,2564.9,8.8053]
[1748259803693,1.16945819,2565.3,2564.9,0.8053]
[1748259804027,1.16945819,2565.3,2564.9,12.70408508]
[1748259804219,1.16945819,2565.3,2564.9,0.8053]
[1748259804421,1.16945819,2565.3,2564.9,10.3156849]
[1748259805835,1.16950416,2565.2,2564.9,10.3156849]
[1748259807414,1.16950416,2565.2,2564.9,0.8053]
[1748259807598,1.16953282,2565.2,2564.9,0.8053]
[1748259808497,1.16955668,2565.1,2564.9,0.8053]
[1748259808697,1.16959064,2565.0,2564.8,0.85844852]
[1748259808916,1.22991086,2565.2,2564.8,8.85844852]
[1748259809136,1.16958443,2565.1,2564.8,8.85844852]
[1748259809310,1.16958443,2565.1,2564.8,8.39685815]
[1748259810024,1.1694695,2565.3,2564.8,9.24987811]
[1748259810337,1.16954825,2565.1,2564.8,9.24987811]
[1748259810721,1.16954825,2565.1,2564.8,8.39685815]
[1748259811441,1.16934998,2565.6,2565.2,8.0]
[1748259811646,1.16934998,2565.6,2565.1,8.0]
[1748259811818,1.16934998,2565.6,2565.1,11.89846724]
[1748259812347,1.16929637,2565.7,2565.3,0.8218]
[1748259812643,1.41919008,2565.7,2565.3,0.8218]
[1748259813653,1.16932103,2565.6,2565.3,0.8218]
[1748259814113,1.16932103,2565.6,2565.3,1.20889124]
[1748259814714,1.16932103,2565.6,2565.3,0.38709124]
[1748259814924,1.16932103,2565.6,2565.2,4.35991686]
[1748259815242,1.16932103,2565.6,2565.2,8.46159037]
[1748259815441,1.16938901,2565.5,2565.2,8.46159037]
[1748259815848,1.16938901,2565.5,2565.2,0.46159037]
[1748259816048,1.16938901,2565.5,2565.1,1.22709037]
[1748259816416,1.16938901,2565.5,2565.2,8.0]
[1748259817549,1.22974265,2565.6,2565.2,8.0]
[1748259817731,1.16938382,2565.5,2565.2,0.38489095]
[1748259817941,1.16938382,2565.5,2565.1,1.22709037]
[1748259818251,1.16938382,2565.5,2565.2,8.0]
[1748259818755,1.16938382,2565.5,2565.1,1.22709037]
[1748259818915,1.16938382,2565.5,2565.1,9.22709037]
[1748259819118,1.22974367,2565.6,2565.1,13.12552207]
[1748259820349,1.22974367,2565.6,2565.1,9.22709037]
[1748259820656,1.22974367,2565.6,2565.1,13.12548434]
[1748259821054,1.16937873,2565.5,2565.1,13.12548434]
[1748259821566,1.22973763,2565.6,2565.3,8.0]
[1748259822258,1.22973763,2565.6,2565.2,11.89833003]
[1748259825363,1.22973763,2565.6,2565.2,12.3599204]
[1748259825934,1.01041137,2565.6,2565.2,12.3599204]
[1748259827771,1.16936867,2565.5,2565.2,8.46159037]
[1748259827939,1.16933988,2565.6,2565.2,8.46159037]
[1748259828871,1.16933988,2565.6,2565.2,0.46159037]
[1748259829570,1.16933988,2565.6,2565.2,4.35989339]
[1748259831369,1.16934188,2565.6,2565.2,4.35991629]
[1748259832979,1.16934188,2565.6,2565.3,8.0]
[1748259834776,1.16934188,2565.6,2565.2,0.46159037]
[1748259835170,1.16934188,2565.6,2565.3,8.0]
[1748259837791,1.16924087,2565.8,2565.3,8.0]
[1748259837994,1.26918945,2565.9,2565.6,8.0]
[1748259838391,1.26918945,2565.9,2565.4,0.8238]
[1748259838392,1.26918945,2565.9,2565.4,16.61573635]
[1748259839805,1.16923676,2565.8,2565.4,16.61573635]
[1748259840007,0.1,2565.9,2565.4,8.46159037]
[1748259840299,1.16929401,2565.7,2565.4,4.35559037]
[1748259841007,1.16923932,2565.8,2565.4,4.35559037]
[1748259841609,1.16928933,2565.7,2565.4,4.35559037]
[1748259843683,1.16928933,2565.7,2565.5,8.0]
[1748259843884,0.1,2565.9,2565.4,0.46159037]
[1748259844099,1.16935575,2565.6,2565.4,0.46159037]
[1748259844716,1.16936269,2565.5,2565.4,0.46159037]
[1748259844900,1.16933073,2565.6,2565.3,8.46159037]
[1748259845277,1.16937863,2565.5,2565.3,8.46159037]
[1748259845711,1.16934068,2565.6,2565.3,8.46159037]
[1748259846405,1.16938242,2565.5,2565.3,8.46159037]
[1748259846606,1.16933869,2565.6,2565.3,8.46159037]
[1748259848730,1.16933522,2565.6,2565.3,8.46159037]
[1748259850025,1.16936614,2565.5,2565.3,8.46159037]
[1748259850331,1.16933125,2565.6,2565.3,8.46159037]
[1748259850521,1.16937255,2565.5,2565.3,8.46159037]
[1748259850708,1.16933125,2565.6,2565.3,8.46159037]
[1748259852741,1.1693882,2565.5,2565.3,0.46159037]
[1748259852939,1.16924967,2565.8,2565.3,5.58408324]
[1748259853098,1.16924967,2565.8,2565.5,8.0]
[1748259853294,1.16924967,2565.8,2565.3,13.58408131]
[1748259853500,1.16924967,2565.8,2565.4,8.0]
[1748259853918,1.26918377,2565.9,2565.4,8.0]
[1748259853919,1.16927675,2565.7,2565.4,8.0]
[1748259854295,1.16925349,2565.8,2565.4,13.25641815]
[1748259854520,1.00149455,2565.8,2565.4,9.35840813]
[1748259854914,1.26920995,2565.9,2565.5,0.7555]
[1748259855099,1.26920995,2565.9,2565.5,4.65333539]
[1748259855528,1.26920995,2565.9,2565.5,0.7555]
[1748259855730,0.36485751,2565.8,2565.5,2.71509704]
[1748259856941,1.26920995,2565.9,2565.5,2.71509704]
[1748259858045,4.072,2566.3,2565.5,8.17909704]
[1748259858214,5.24103284,2566.3,2565.9,8.0]
[1748259858412,1.96529663,2566.4,2566.0,0.8112]
[1748259858617,1.96529663,2566.4,2566.1,8.0]
[1748259859316,1.96529663,2566.4,2566.2,0.46159037]
[1748259860629,1.96529663,2566.4,2566.1,8.46159037]
[1748259860829,3.13428207,2566.4,2566.1,8.65884052]
[1748259861032,1.16904372,2566.2,2566.1,8.65884052]
[1748259861270,3.13426169,2566.4,2566.1,8.65884052]
[1748259861469,1.16902164,2566.3,2566.1,8.65884052]
[1748259861766,3.13426081,2566.4,2566.1,8.65884052]
[1748259862336,3.13426081,2566.4,2566.1,8.19725015]
[1748259863366,3.13426081,2566.4,2566.1,0.19725015]
[1748259863669,1.16901868,2566.3,2565.9,0.46159037]
[1748259863839,1.96529663,2566.4,2565.9,0.46159037]
[1748259864043,1.16906358,2566.2,2565.9,0.46159037]
[1748259864245,1.16909426,2566.1,2565.9,0.46159037]
[1748259864832,1.16913484,2566.0,2565.9,0.46159037]
[1748259865032,1.16904973,2566.2,2565.9,8.19855955]
[1748259865262,1.16911285,2566.1,2565.9,0.19855955]
[1748259865466,1.16913484,2566.0,2565.6,0.46159037]
[1748259865668,1.16920428,2565.9,2565.6,2.36655838]
[1748259865834,1.16916055,2566.0,2565.6,0.46159037]
[1748259866638,1.16916055,2566.0,2565.5,17.06960703]
[1748259867066,1.16911195,2566.1,2565.6,3.89770328]
[1748259867271,1.16911195,2566.1,2565.6,4.09172511]
[1748259869082,1.16913609,2566.0,2565.6,0.19402183]
[1748259869247,1.16913609,2566.0,2565.6,3.89770616]
[1748259870173,1.16911338,2566.1,2565.6,3.89770616]
[1748259870869,1.16907093,2566.2,2565.7,3.89757029]
[1748259871084,1.16909377,2566.1,2565.7,3.89757029]
[1748259871289,1.16907402,2566.2,2565.7,3.89757029]
[1748259871782,1.16909112,2566.1,2565.7,3.89757029]
[1748259872953,1.16909112,2566.1,2565.6,5.92926904]
[1748259873157,1.16910897,2566.1,2565.6,5.92926904]
[1748259873361,1.16914118,2566.0,2565.6,5.92926904]
[1748259873589,4.07,2566.5,2565.6,5.92926904]
[1748259873792,1.16910732,2566.1,2565.6,5.92926904]
[1748259873951,1.16911561,2566.1,2565.6,5.92929306]
[1748259874496,1.16921108,2565.9,2565.6,0.46159037]
[1748259874650,1.16921108,2565.9,2565.5,12.9089126]
[1748259874651,1.16921108,2565.9,2565.5,13.37050297]
[1748259875157,1.16930742,2565.7,2565.5,0.66030297]
[1748259875551,1.16931711,2565.6,2565.5,0.66030297]
[1748259875752,1.16931711,2565.6,2565.5,0.46159037]
[1748259875952,1.16940827,2565.4,2565.1,1.61146189]
[1748259876186,1.16940827,2565.4,2565.1,9.61146189]
[1748259876754,1.16933733,2565.6,2565.1,15.5059154]
[1748259876951,1.16937932,2565.5,2565.1,11.60750119]
[1748259877154,0.36363358,2565.9,2565.1,1.80552206]
[1748259877361,1.16944254,2565.4,2565.1,1.34393169]
[1748259877563,1.16945971,2565.3,2565.1,1.34393169]
[1748259877750,1.16942929,2565.4,2565.1,1.34393169]
[1748259879084,1.16947136,2565.3,2565.1,1.34393169]
[1748259882305,1.16949945,2565.2,2565.1,0.58963169]
[1748259882512,1.16949945,2565.2,2564.9,0.46159037]
[1748259882678,1.16949945,2565.2,2564.9,9.785914]
[1748259883191,1.16949945,2565.2,2564.9,9.32432363]
[1748259883700,1.16956957,2565.1,2564.9,9.70986316]
[1748259883990,1.53287366,2565.7,2564.9,0.58527758]
[1748259884197,1.16942723,2565.4,2565.0,8.0]
[1748259884565,1.16946463,2565.3,2564.9,1.63364581]
[1748259884787,1.16946463,2565.3,2565.0,1.37263801]
[1748259885174,1.16946463,2565.3,2565.0,9.37263801]
[1748259886891,1.16950135,2565.2,2565.0,9.37263801]
[1748259887227,1.1694788,2565.3,2565.0,9.37263801]
[1748259888113,1.16950219,2565.2,2565.0,9.37263801]
[1748259888312,1.16952179,2565.2,2565.0,9.37263801]
[1748259888514,1.16954504,2565.1,2565.0,9.37263801]
[1748259888836,1.16959064,2565.0,2564.9,0.38718872]